[Event "Late-Titled-Tuesday-Blitz-February-20-2024"]
[Site "Chess.com"]
[Date "2024.02.20"]
[Round "9"]
[White "MrKGG1"]
[Black "Fandorine"]
[Result "0-1"]
[WhiteElo "2592"]
[BlackElo "2906"]
[TimeControl "180+1"]
[EndTime "15:44:01 PST"]
[Termination "Fandorine won on time"]

1. e4 {[%clk 0:03:00.9]} 1... c5 {[%clk 0:02:58.6]} 2. Nc3 {[%clk 0:03:00.4]}
2... d6 {[%clk 0:02:58.4]} 3. g3 {[%clk 0:02:57.6]} 3... g6 {[%clk 0:02:58.2]}
4. Bg2 {[%clk 0:02:58.1]} 4... Bg7 {[%clk 0:02:58.7]} 5. d3 {[%clk 0:02:59]}
5... Nc6 {[%clk 0:02:59]} 6. Be3 {[%clk 0:02:59.5]} 6... Rb8 {[%clk 0:02:57.6]}
7. Qd2 {[%clk 0:02:59.5]} 7... b5 {[%clk 0:02:57.7]} 8. Nge2 {[%clk 0:02:58.3]}
8... b4 {[%clk 0:02:57]} 9. Nd1 {[%clk 0:02:58.6]} 9... e5 {[%clk 0:02:56.8]}
10. a3 {[%clk 0:02:57.4]} 10... a5 {[%clk 0:02:55.9]} 11. axb4 {[%clk
0:02:57.8]} 11... axb4 {[%clk 0:02:53.3]} 12. f4 {[%clk 0:02:46.6]} 12... h5
{[%clk 0:02:50.1]} 13. O-O {[%clk 0:02:43.2]} 13... h4 {[%clk 0:02:49.3]} 14. f5
{[%clk 0:02:38.4]} 14... hxg3 {[%clk 0:02:49.4]} 15. hxg3 {[%clk 0:02:27.4]}
15... Nf6 {[%clk 0:02:47.1]} 16. Bg5 {[%clk 0:02:20.6]} 16... Rh5 {[%clk
0:02:37.5]} 17. g4 {[%clk 0:02:13]} 17... Rh8 {[%clk 0:02:11.8]} 18. Ne3 {[%clk
0:02:05.2]} 18... Nxe4 {[%clk 0:01:49.2]} 19. Bxe4 {[%clk 0:01:52.1]} 19... Qxg5
{[%clk 0:01:49.5]} 20. Bxc6+ {[%clk 0:01:51.7]} 20... Kd8 {[%clk 0:01:46.9]} 21.
Ng3 {[%clk 0:01:03.3]} 21... Bh6 {[%clk 0:01:18.9]} 22. Rae1 {[%clk 0:00:54.5]}
22... Qxg4 {[%clk 0:01:00]} 23. Nxg4 {[%clk 0:00:48]} 23... Bxd2 {[%clk
0:01:00.5]} 24. Re2 {[%clk 0:00:36.4]} 24... Bf4 {[%clk 0:01:00.2]} 25. Rxf4
{[%clk 0:00:06.2]} 25... exf4 {[%clk 0:00:59.3]} 26. Nf1 {[%clk 0:00:06.5]}
26... Bxf5 {[%clk 0:00:58.5]} 27. Nf6 {[%clk 0:00:05.4]} 27... Be6 {[%clk
0:00:56.8]} 28. Bd5 {[%clk 0:00:04.6]} 28... Ke7 {[%clk 0:00:56.7]} 29. Bxe6
{[%clk 0:00:04.8]} 29... Kxf6 {[%clk 0:00:57.2]} 30. Bd5 {[%clk 0:00:04.4]}
30... Rbe8 {[%clk 0:00:57.6]} 31. Rf2 {[%clk 0:00:04.2]} 31... g5 {[%clk
0:00:58.2]} 32. Nd2 {[%clk 0:00:04.5]} 32... Kg6 {[%clk 0:00:55.3]} 33. Bf3
{[%clk 0:00:03]} 33... f5 {[%clk 0:00:54]} 34. Nc4 {[%clk 0:00:03.4]} 34... g4
{[%clk 0:00:53.6]} 35. Be2 {[%clk 0:00:03.4]} 35... f3 {[%clk 0:00:53]} 36. Bf1
{[%clk 0:00:03.3]} 36... d5 {[%clk 0:00:49.8]} 37. Nb6 {[%clk 0:00:02.1]} 37...
d4 {[%clk 0:00:48.8]} 38. Nd5 {[%clk 0:00:02.1]} 38... Re1 {[%clk 0:00:48.3]}
39. Nf4+ {[%clk 0:00:01.6]} 39... Kg5 {[%clk 0:00:48.3]} 40. Nd5 {[%clk
0:00:02.1]} 40... f4 {[%clk 0:00:47.7]} 41. Nc7 {[%clk 0:00:01.9]} 41... Re3
{[%clk 0:00:46]} 42. Nb5 {[%clk 0:00:02]} 42... g3 {[%clk 0:00:45.7]} 43. Rd2
{[%clk 0:00:01.8]} 43... Re1 {[%clk 0:00:44]} 44. Nd6 {[%clk 0:00:01.7]} 44...
Rh1+ {[%clk 0:00:37.2]} 0-1

[Event "Late-Titled-Tuesday-Blitz-February-20-2024"]
[Site "Chess.com"]
[Date "2024.02.20"]
[Round "9"]
[White "Navyblue1"]
[Black "laskakid"]
[Result "0-1"]
[WhiteElo "2210"]
[BlackElo "2348"]
[TimeControl "180+1"]
[EndTime "15:44:02 PST"]
[Termination "laskakid won on time"]

1. d4 {[%clk 0:03:00.3]} 1... Nf6 {[%clk 0:02:59.1]} 2. c4 {[%clk 0:02:59.5]}
2... g6 {[%clk 0:02:59.4]} 3. Nc3 {[%clk 0:02:56.6]} 3... Bg7 {[%clk 0:02:59.7]}
4. e4 {[%clk 0:02:50.9]} 4... d6 {[%clk 0:02:59.6]} 5. h3 {[%clk 0:02:46.9]}
5... O-O {[%clk 0:02:57.3]} 6. Be3 {[%clk 0:02:28.9]} 6... e5 {[%clk 0:02:52.5]}
7. d5 {[%clk 0:02:21.8]} 7... a5 {[%clk 0:02:40.9]} 8. g4 {[%clk 0:02:09.9]}
8... Na6 {[%clk 0:02:36.1]} 9. Nge2 {[%clk 0:02:06.2]} 9... h5 {[%clk
0:02:08.9]} 10. gxh5 {[%clk 0:01:44.4]} 10... Nxh5 {[%clk 0:02:07.7]} 11. Qd2
{[%clk 0:01:44.3]} 11... Nc5 {[%clk 0:02:00.7]} 12. Bg2 {[%clk 0:01:33.8]} 12...
f5 {[%clk 0:01:42.8]} 13. Bf3 {[%clk 0:01:28.3]} 13... Qh4 {[%clk 0:01:30.5]}
14. Bxh5 {[%clk 0:00:56.9]} 14... Qxh5 {[%clk 0:01:20.5]} 15. Ng3 {[%clk
0:00:52.6]} 15... Qf3 {[%clk 0:01:20.5]} 16. Bxc5 {[%clk 0:00:19.9]} 16... dxc5
{[%clk 0:01:19.4]} 17. Qe2 {[%clk 0:00:20.3]} 17... fxe4 {[%clk 0:01:10.7]} 18.
Ncxe4 {[%clk 0:00:20.2]} 18... Qg2 {[%clk 0:00:59.9]} 19. O-O-O {[%clk
0:00:18.3]} 19... Bh6+ {[%clk 0:00:49.1]} 20. Kb1 {[%clk 0:00:18.3]} 20... Qf3
{[%clk 0:00:49.4]} 21. Qxf3 {[%clk 0:00:17.5]} 21... Rxf3 {[%clk 0:00:50]} 22.
Ka1 {[%clk 0:00:17.8]} 22... b6 {[%clk 0:00:44.6]} 23. Rde1 {[%clk 0:00:17.8]}
23... Ba6 {[%clk 0:00:44.3]} 24. b3 {[%clk 0:00:16.9]} 24... Raf8 {[%clk
0:00:41]} 25. h4 {[%clk 0:00:16.7]} 25... Bf4 {[%clk 0:00:38.5]} 26. h5 {[%clk
0:00:16.1]} 26... g5 {[%clk 0:00:35.7]} 27. h6 {[%clk 0:00:15]} 27... Kh7 {[%clk
0:00:35.9]} 28. Rh5 {[%clk 0:00:14.5]} 28... g4 {[%clk 0:00:29.6]} 29. Rh4
{[%clk 0:00:12.9]} 29... Bc8 {[%clk 0:00:29.3]} 30. Reh1 {[%clk 0:00:10.4]}
30... Bxg3 {[%clk 0:00:26.6]} 31. fxg3 {[%clk 0:00:10.3]} 31... Re3 {[%clk
0:00:23.8]} 32. Ng5+ {[%clk 0:00:10.3]} 32... Kh8 {[%clk 0:00:23.7]} 33. h7
{[%clk 0:00:10]} 33... Rxg3 {[%clk 0:00:24]} 34. Rh6 {[%clk 0:00:09.3]} 34...
Rg2 {[%clk 0:00:23]} 35. Rg6 {[%clk 0:00:08.7]} 35... Bf5 {[%clk 0:00:21.2]} 36.
Rgh6 {[%clk 0:00:07.8]} 36... Bd3 {[%clk 0:00:20.2]} 37. Ne6 {[%clk 0:00:07.7]}
37... Rff2 {[%clk 0:00:19.6]} 0-1

[Event "Late-Titled-Tuesday-Blitz-February-20-2024"]
[Site "Chess.com"]
[Date "2024.02.20"]
[Round "9"]
[White "jinxy2009"]
[Black "Bkmzzzzz"]
[Result "0-1"]
[WhiteElo "2187"]
[BlackElo "2378"]
[TimeControl "180+1"]
[EndTime "15:44:05 PST"]
[Termination "Bkmzzzzz won by resignation"]

1. e4 {[%clk 0:02:50.3]} 1... d6 {[%clk 0:02:59.7]} 2. d4 {[%clk 0:02:49.7]}
2... Nf6 {[%clk 0:02:59.7]} 3. Nc3 {[%clk 0:02:46.3]} 3... e5 {[%clk 0:02:59.8]}
4. Nf3 {[%clk 0:02:45.2]} 4... Nbd7 {[%clk 0:02:58.9]} 5. Rg1 {[%clk 0:02:45.6]}
5... exd4 {[%clk 0:02:41.5]} 6. Nxd4 {[%clk 0:02:40.5]} 6... Nc5 {[%clk
0:02:39.4]} 7. f3 {[%clk 0:02:30.8]} 7... Be7 {[%clk 0:02:31.2]} 8. Be3 {[%clk
0:02:28.3]} 8... Be6 {[%clk 0:02:13.6]} 9. Qd2 {[%clk 0:02:17]} 9... Qd7 {[%clk
0:02:12.2]} 10. O-O-O {[%clk 0:02:15.4]} 10... a6 {[%clk 0:02:10.3]} 11. Nxe6
{[%clk 0:02:14.6]} 11... Nxe6 {[%clk 0:02:11.2]} 12. g4 {[%clk 0:02:13.6]} 12...
O-O-O {[%clk 0:02:09.2]} 13. Kb1 {[%clk 0:02:10.6]} 13... Kb8 {[%clk 0:02:03.5]}
14. g5 {[%clk 0:02:06.5]} 14... Ne8 {[%clk 0:01:32.8]} 15. Nd5 {[%clk
0:01:59.9]} 15... Bf8 {[%clk 0:01:32.2]} 16. Qb4 {[%clk 0:01:30]} 16... Qc6
{[%clk 0:01:26.8]} 17. Rd3 {[%clk 0:01:14.1]} 17... Qb5 {[%clk 0:00:59.1]} 18.
Rb3 {[%clk 0:00:53.4]} 18... Qxb4 {[%clk 0:00:54.8]} 19. Rxb4 {[%clk 0:00:53.2]}
19... Ka8 {[%clk 0:00:47.2]} 20. f4 {[%clk 0:00:20.6]} 20... Nc5 {[%clk
0:00:46.3]} 21. Rc4 {[%clk 0:00:10.3]} 21... Kb8 {[%clk 0:00:36.8]} 22. b4
{[%clk 0:00:08.5]} 22... Nd7 {[%clk 0:00:36]} 23. a4 {[%clk 0:00:05.4]} 23... f6
{[%clk 0:00:34.8]} 24. g6 {[%clk 0:00:04.3]} 24... hxg6 {[%clk 0:00:34.4]} 25.
h3 {[%clk 0:00:02.8]} 25... g5 {[%clk 0:00:33.6]} 26. f5 {[%clk 0:00:02.7]}
26... Ne5 {[%clk 0:00:33.9]} 27. Rc3 {[%clk 0:00:02.5]} 27... c6 {[%clk
0:00:32.3]} 28. Nb6 {[%clk 0:00:02]} 28... Nc7 {[%clk 0:00:32.4]} 29. b5 {[%clk
0:00:02.4]} 29... axb5 {[%clk 0:00:31.9]} 30. axb5 {[%clk 0:00:02.3]} 30... d5
{[%clk 0:00:28.1]} 31. bxc6 {[%clk 0:00:01.8]} 31... Nxc6 {[%clk 0:00:27.4]} 32.
Bb5 {[%clk 0:00:01.2]} 32... Nxb5 {[%clk 0:00:26.9]} 33. Rb3 {[%clk 0:00:01.2]}
33... Nc7 {[%clk 0:00:26.8]} 34. Bf2 {[%clk 0:00:01.3]} 34... dxe4 {[%clk
0:00:25.9]} 35. Bg3 {[%clk 0:00:01.8]} 35... Bd6 {[%clk 0:00:26.6]} 36. Bxd6
{[%clk 0:00:01.4]} 36... Rxd6 {[%clk 0:00:27.5]} 37. Rf1 {[%clk 0:00:02]} 37...
Rhd8 {[%clk 0:00:26.6]} 38. Re1 {[%clk 0:00:02.9]} 38... Rd1+ {[%clk 0:00:26.2]}
39. Rxd1 {[%clk 0:00:03.5]} 39... Rxd1+ {[%clk 0:00:26.6]} 40. Kb2 {[%clk
0:00:04.4]} 40... Nd5 {[%clk 0:00:25.6]} 41. Ra3 {[%clk 0:00:04.3]} 41... Nxb6
{[%clk 0:00:25.3]} 0-1

[Event "Late-Titled-Tuesday-Blitz-February-20-2024"]
[Site "Chess.com"]
[Date "2024.02.20"]
[Round "9"]
[White "TemploVillamarin"]
[Black "giovannibrandao7"]
[Result "1-0"]
[WhiteElo "2196"]
[BlackElo "2226"]
[TimeControl "180+1"]
[EndTime "15:44:06 PST"]
[Termination "TemploVillamarin won on time"]

1. d4 {[%clk 0:02:58.9]} 1... Nf6 {[%clk 0:02:51.4]} 2. Nc3 {[%clk 0:02:57.9]}
2... d5 {[%clk 0:02:51]} 3. e4 {[%clk 0:02:58.2]} 3... dxe4 {[%clk 0:02:50.4]}
4. f3 {[%clk 0:02:58]} 4... exf3 {[%clk 0:02:49.4]} 5. Nxf3 {[%clk 0:02:57.9]}
5... e6 {[%clk 0:02:46.1]} 6. Bd3 {[%clk 0:02:54]} 6... Be7 {[%clk 0:02:43.6]}
7. Bg5 {[%clk 0:02:51.7]} 7... O-O {[%clk 0:02:40.8]} 8. Qe2 {[%clk 0:02:51.8]}
8... Nbd7 {[%clk 0:02:38.6]} 9. O-O-O {[%clk 0:02:51.4]} 9... c6 {[%clk
0:02:32]} 10. Ne5 {[%clk 0:02:48.8]} 10... Nxe5 {[%clk 0:02:12.5]} 11. dxe5
{[%clk 0:02:45.1]} 11... Nd5 {[%clk 0:02:13]} 12. Bxe7 {[%clk 0:02:44.4]} 12...
Qxe7 {[%clk 0:02:12.1]} 13. Ne4 {[%clk 0:02:44.5]} 13... f5 {[%clk 0:01:58.5]}
14. exf6 {[%clk 0:02:43.4]} 14... Nxf6 {[%clk 0:01:59]} 15. Ng5 {[%clk
0:02:39.4]} 15... h6 {[%clk 0:01:54.3]} 16. Nf3 {[%clk 0:02:39.2]} 16... e5
{[%clk 0:00:48.2]} 17. Nxe5 {[%clk 0:02:29.6]} 17... Re8 {[%clk 0:00:48.2]} 18.
Bc4+ {[%clk 0:02:26.1]} 18... Be6 {[%clk 0:00:46.6]} 19. Rhe1 {[%clk 0:02:08.9]}
19... Bxc4 {[%clk 0:00:36.6]} 20. Qxc4+ {[%clk 0:02:08.1]} 20... Qe6 {[%clk
0:00:37.1]} 21. Qxe6+ {[%clk 0:01:42.2]} 21... Rxe6 {[%clk 0:00:38]} 22. Ng6
{[%clk 0:01:41.9]} 22... Rae8 {[%clk 0:00:35.9]} 23. Rxe6 {[%clk 0:01:38.7]}
23... Rxe6 {[%clk 0:00:36.8]} 24. Nf4 {[%clk 0:01:35.4]} 24... Re4 {[%clk
0:00:35]} 25. g3 {[%clk 0:01:35.7]} 25... Kf7 {[%clk 0:00:34.4]} 26. Kd2 {[%clk
0:01:33.3]} 26... g5 {[%clk 0:00:34.1]} 27. Nd3 {[%clk 0:01:32.8]} 27... b6
{[%clk 0:00:33.2]} 28. Rf1 {[%clk 0:01:30.2]} 28... Ke6 {[%clk 0:00:30.1]} 29.
Nf2 {[%clk 0:01:22.9]} 29... Re5 {[%clk 0:00:27.4]} 30. Nd3 {[%clk 0:01:22.3]}
30... Re4 {[%clk 0:00:21.5]} 31. b3 {[%clk 0:01:20.2]} 31... c5 {[%clk
0:00:19.7]} 32. c4 {[%clk 0:01:18.1]} 32... Rd4 {[%clk 0:00:18.6]} 33. Re1+
{[%clk 0:01:14.4]} 33... Kf5 {[%clk 0:00:18.3]} 34. Rf1+ {[%clk 0:01:03.2]}
34... Kg6 {[%clk 0:00:12.1]} 35. Kc2 {[%clk 0:00:59.4]} 35... Ng4 {[%clk
0:00:07.2]} 36. Kc3 {[%clk 0:00:54.7]} 36... Rd6 {[%clk 0:00:03.3]} 37. h3
{[%clk 0:00:49.6]} 37... Ne3 {[%clk 0:00:03.2]} 38. Ne5+ {[%clk 0:00:38.5]}
38... Kh5 {[%clk 0:00:02.1]} 39. Re1 {[%clk 0:00:33.7]} 39... Nf5 {[%clk
0:00:01.7]} 40. g4+ {[%clk 0:00:32.5]} 1-0

[Event "Late-Titled-Tuesday-Blitz-February-20-2024"]
[Site "Chess.com"]
[Date "2024.02.20"]
[Round "9"]
[White "Zq1"]
[Black "IraZyne"]
[Result "1-0"]
[WhiteElo "2496"]
[BlackElo "2355"]
[TimeControl "180+1"]
[EndTime "15:44:08 PST"]
[Termination "Zq1 won by resignation"]

1. d4 {[%clk 0:03:00.9]} 1... d5 {[%clk 0:02:59.1]} 2. c4 {[%clk 0:03:00.7]}
2... e6 {[%clk 0:02:55.2]} 3. Nc3 {[%clk 0:02:59.7]} 3... c6 {[%clk 0:02:55.2]}
4. e4 {[%clk 0:02:58.4]} 4... dxe4 {[%clk 0:02:55.3]} 5. Nxe4 {[%clk 0:02:58.5]}
5... Bb4+ {[%clk 0:02:55.6]} 6. Nc3 {[%clk 0:02:58.6]} 6... e5 {[%clk
0:02:55.8]} 7. a3 {[%clk 0:02:57]} 7... Ba5 {[%clk 0:02:49.7]} 8. Nf3 {[%clk
0:02:50.7]} 8... exd4 {[%clk 0:02:48.4]} 9. Qxd4 {[%clk 0:02:49.8]} 9... Nd7
{[%clk 0:02:43.8]} 10. Qxg7 {[%clk 0:02:43.2]} 10... Qf6 {[%clk 0:02:40.4]} 11.
Qxf6 {[%clk 0:02:41.9]} 11... Ngxf6 {[%clk 0:02:40.5]} 12. Bd2 {[%clk
0:02:38.5]} 12... O-O {[%clk 0:02:37.9]} 13. O-O-O {[%clk 0:02:34.5]} 13... Nc5
{[%clk 0:02:36.7]} 14. b4 {[%clk 0:02:29.2]} 14... Nb3+ {[%clk 0:02:36.2]} 15.
Kb2 {[%clk 0:02:28.7]} 15... Nxd2 {[%clk 0:02:35.9]} 16. Rxd2 {[%clk 0:02:28.8]}
16... Bc7 {[%clk 0:02:34.9]} 17. g3 {[%clk 0:02:25.5]} 17... Be6 {[%clk
0:02:32.5]} 18. Nd4 {[%clk 0:02:10]} 18... Rad8 {[%clk 0:02:31.3]} 19. Be2
{[%clk 0:02:09.9]} 19... Be5 {[%clk 0:02:23.9]} 20. Rhd1 {[%clk 0:02:07.4]}
20... Bc8 {[%clk 0:02:19.2]} 21. f4 {[%clk 0:02:01.8]} 21... Bc7 {[%clk
0:02:19]} 22. Bf3 {[%clk 0:01:47.4]} 22... Rde8 {[%clk 0:02:15.6]} 23. Re2
{[%clk 0:01:39.9]} 23... Ng4 {[%clk 0:02:11.2]} 24. Bxg4 {[%clk 0:01:29.3]}
24... Bxg4 {[%clk 0:02:08.7]} 25. Rxe8 {[%clk 0:01:29.9]} 25... Rxe8 {[%clk
0:02:08.8]} 26. Rd2 {[%clk 0:01:29.8]} 26... Bd8 {[%clk 0:02:00]} 27. Kc2 {[%clk
0:01:21.7]} 27... Bf6 {[%clk 0:01:58.9]} 28. c5 {[%clk 0:01:10.4]} 28... Re3
{[%clk 0:01:53.2]} 29. Rd3 {[%clk 0:01:05.8]} 29... Re1 {[%clk 0:01:42.3]} 30.
Kd2 {[%clk 0:00:58.2]} 30... Rh1 {[%clk 0:01:38.1]} 31. Ne4 {[%clk 0:00:57.2]}
31... Rxh2+ {[%clk 0:01:34.3]} 32. Ke3 {[%clk 0:00:42.8]} 32... Be7 {[%clk
0:01:31]} 33. Nf3 {[%clk 0:00:38.8]} 33... Rh1 {[%clk 0:01:24.5]} 34. Nd6 {[%clk
0:00:30.3]} 34... Rf1 {[%clk 0:01:15.2]} 35. Ne5 {[%clk 0:00:28.5]} 35... Re1+
{[%clk 0:01:10.2]} 36. Kf2 {[%clk 0:00:23.5]} 36... Re2+ {[%clk 0:01:09.5]} 37.
Kf1 {[%clk 0:00:23.5]} 37... Bh5 {[%clk 0:01:08.1]} 38. g4 {[%clk 0:00:23.2]}
38... Rxe5 {[%clk 0:01:02.2]} 39. fxe5 {[%clk 0:00:22.7]} 39... Bxg4 {[%clk
0:01:02.4]} 40. Nxb7 {[%clk 0:00:20.8]} 40... h5 {[%clk 0:01:01.1]} 41. Na5
{[%clk 0:00:20.4]} 41... h4 {[%clk 0:00:57.6]} 42. Nxc6 {[%clk 0:00:19.9]} 42...
Bg5 {[%clk 0:00:54.7]} 43. Kg2 {[%clk 0:00:18.1]} 43... Bf4 {[%clk 0:00:53.9]}
44. Nxa7 {[%clk 0:00:16.2]} 44... h3+ {[%clk 0:00:52.4]} 45. Rxh3 {[%clk
0:00:15.3]} 45... Bxh3+ {[%clk 0:00:52.2]} 46. Kxh3 {[%clk 0:00:15.2]} 46...
Bxe5 {[%clk 0:00:52.8]} 47. c6 {[%clk 0:00:15.1]} 47... Kf8 {[%clk 0:00:52.6]}
48. b5 {[%clk 0:00:13]} 48... Ke7 {[%clk 0:00:52.6]} 49. b6 {[%clk 0:00:13.2]}
49... Kd8 {[%clk 0:00:52.6]} 50. c7+ {[%clk 0:00:12.7]} 50... Bxc7 {[%clk
0:00:52.6]} 51. bxc7+ {[%clk 0:00:12.7]} 51... Kxc7 {[%clk 0:00:52.9]} 52. Nb5+
{[%clk 0:00:12.9]} 52... Kb6 {[%clk 0:00:52.8]} 53. Nc3 {[%clk 0:00:12.3]} 53...
Kc5 {[%clk 0:00:52.6]} 54. Nb1 {[%clk 0:00:12]} 54... f5 {[%clk 0:00:49.9]} 55.
Kg3 {[%clk 0:00:11.8]} 55... Kd5 {[%clk 0:00:47.3]} 56. Kf4 {[%clk 0:00:11.8]}
56... Ke6 {[%clk 0:00:47.3]} 57. a4 {[%clk 0:00:11.2]} 1-0

[Event "Late-Titled-Tuesday-Blitz-February-20-2024"]
[Site "Chess.com"]
[Date "2024.02.20"]
[Round "9"]
[White "PacingRope"]
[Black "Goryachkina"]
[Result "1-0"]
[WhiteElo "2919"]
[BlackElo "2705"]
[TimeControl "180+1"]
[EndTime "15:44:09 PST"]
[Termination "PacingRope won by checkmate"]

1. e4 {[%clk 0:03:00.9]} 1... c5 {[%clk 0:02:59.5]} 2. Nf3 {[%clk 0:03:01.5]}
2... e6 {[%clk 0:02:59.4]} 3. d4 {[%clk 0:03:01.8]} 3... cxd4 {[%clk 0:02:59.6]}
4. Nxd4 {[%clk 0:03:02.7]} 4... Nf6 {[%clk 0:02:59.6]} 5. Nc3 {[%clk 0:03:03.3]}
5... Nc6 {[%clk 0:03:00]} 6. g4 {[%clk 0:03:03.9]} 6... Nxd4 {[%clk 0:02:46.8]}
7. Qxd4 {[%clk 0:03:04.8]} 7... Nxg4 {[%clk 0:02:46.7]} 8. e5 {[%clk 0:03:00.6]}
8... Nh6 {[%clk 0:02:40.5]} 9. Bxh6 {[%clk 0:02:54.4]} 9... gxh6 {[%clk
0:02:40.5]} 10. O-O-O {[%clk 0:02:50.4]} 10... Qa5 {[%clk 0:02:33.4]} 11. Ne4
{[%clk 0:02:45.4]} 11... Qxa2 {[%clk 0:01:28.9]} 12. Nf6+ {[%clk 0:02:39.9]}
12... Kd8 {[%clk 0:01:28.6]} 13. Nxd7 {[%clk 0:02:07.1]} 13... Qa1+ {[%clk
0:01:21.5]} 14. Kd2 {[%clk 0:02:07.4]} 14... Qa5+ {[%clk 0:01:21.6]} 15. Ke3
{[%clk 0:02:05.4]} 15... Qd5 {[%clk 0:01:16]} 16. Qxd5 {[%clk 0:01:43.1]} 16...
exd5 {[%clk 0:01:15.8]} 17. Rxd5 {[%clk 0:01:42.4]} 17... Kc7 {[%clk 0:00:55.7]}
18. Bh3 {[%clk 0:01:32.5]} 18... b6 {[%clk 0:00:55.7]} 19. Rhd1 {[%clk 0:01:30]}
19... Bb7 {[%clk 0:00:52.9]} 20. R5d3 {[%clk 0:01:24.5]} 20... Bb4 {[%clk
0:00:52.2]} 21. Nf6 {[%clk 0:01:16.9]} 21... Bc5+ {[%clk 0:00:38.4]} 22. Ke2
{[%clk 0:01:10.8]} 22... Ba6 {[%clk 0:00:37.6]} 23. c4 {[%clk 0:00:58.6]} 23...
Bxc4 {[%clk 0:00:35.5]} 24. b4 {[%clk 0:00:59]} 24... Bxb4 {[%clk 0:00:14.9]}
25. Rc1 {[%clk 0:00:54.7]} 25... b5 {[%clk 0:00:15.1]} 26. Nd5+ {[%clk
0:00:52.8]} 26... Kb7 {[%clk 0:00:14.8]} 27. Nxb4 {[%clk 0:00:50.6]} 27... Rad8
{[%clk 0:00:14.7]} 28. Ke3 {[%clk 0:00:47.7]} 28... a5 {[%clk 0:00:06.5]} 29.
Bg2+ {[%clk 0:00:41.2]} 29... Kb6 {[%clk 0:00:06.5]} 30. Nd5+ {[%clk 0:00:38.6]}
30... Kc5 {[%clk 0:00:06.7]} 31. Rdd1 {[%clk 0:00:32.9]} 31... Rhg8 {[%clk
0:00:06.4]} 32. Be4 {[%clk 0:00:30.5]} 32... Rge8 {[%clk 0:00:04.3]} 33. f4
{[%clk 0:00:27.3]} 33... a4 {[%clk 0:00:04.5]} 34. Nf6 {[%clk 0:00:15.6]} 34...
Rxd1 {[%clk 0:00:03.1]} 35. Rxd1 {[%clk 0:00:16.5]} 35... Rh8 {[%clk 0:00:03.4]}
36. Rb1 {[%clk 0:00:14.6]} 36... a3 {[%clk 0:00:03.4]} 37. Nd7# {[%clk
0:00:14.4]} 1-0

[Event "Late-Titled-Tuesday-Blitz-February-20-2024"]
[Site "Chess.com"]
[Date "2024.02.20"]
[Round "9"]
[White "toninhojit"]
[Black "Ajedrez_con_German"]
[Result "1-0"]
[WhiteElo "2474"]
[BlackElo "2606"]
[TimeControl "180+1"]
[EndTime "15:44:09 PST"]
[Termination "toninhojit won by checkmate"]

1. e4 {[%clk 0:03:00]} 1... d5 {[%clk 0:02:49.3]} 2. exd5 {[%clk 0:02:58.3]}
2... Qxd5 {[%clk 0:02:50.2]} 3. Nc3 {[%clk 0:02:57.8]} 3... Qd8 {[%clk 0:02:50]}
4. d4 {[%clk 0:02:57.7]} 4... Nf6 {[%clk 0:02:50.2]} 5. Nf3 {[%clk 0:02:58]}
5... Bg4 {[%clk 0:02:50.3]} 6. Bc4 {[%clk 0:02:58]} 6... e6 {[%clk 0:02:49.7]}
7. Be3 {[%clk 0:02:57.7]} 7... c6 {[%clk 0:02:49.8]} 8. h3 {[%clk 0:02:56.2]}
8... Bh5 {[%clk 0:02:49]} 9. g4 {[%clk 0:02:56.8]} 9... Bg6 {[%clk 0:02:49.1]}
10. Ne5 {[%clk 0:02:57.3]} 10... Nbd7 {[%clk 0:02:48.8]} 11. Nxg6 {[%clk
0:02:56.2]} 11... hxg6 {[%clk 0:02:48.9]} 12. Qe2 {[%clk 0:02:56.2]} 12... Bb4
{[%clk 0:02:48.5]} 13. Bd2 {[%clk 0:02:48.5]} 13... Qe7 {[%clk 0:02:43.5]} 14.
a3 {[%clk 0:02:46.6]} 14... Bxc3 {[%clk 0:02:42.9]} 15. Bxc3 {[%clk 0:02:47.5]}
15... Nd5 {[%clk 0:02:36.8]} 16. Bd2 {[%clk 0:02:44.9]} 16... Qf6 {[%clk
0:02:33.3]} 17. Bxd5 {[%clk 0:02:32.8]} 17... cxd5 {[%clk 0:02:31.6]} 18. O-O-O
{[%clk 0:02:22.1]} 18... O-O-O {[%clk 0:02:06.4]} 19. Bb4 {[%clk 0:02:14.1]}
19... Qf4+ {[%clk 0:01:51.1]} 20. Kb1 {[%clk 0:02:11.7]} 20... Kb8 {[%clk
0:01:50.4]} 21. Rd3 {[%clk 0:02:03.7]} 21... Nf6 {[%clk 0:01:41.9]} 22. f3
{[%clk 0:01:57.8]} 22... Rc8 {[%clk 0:01:29.3]} 23. Bc5 {[%clk 0:01:52]} 23...
Nd7 {[%clk 0:01:19.7]} 24. Bb4 {[%clk 0:01:47.5]} 24... Ka8 {[%clk 0:01:18.4]}
25. a4 {[%clk 0:01:33.1]} 25... Rc4 {[%clk 0:01:18.1]} 26. c3 {[%clk 0:01:30.1]}
26... Rhc8 {[%clk 0:01:10.8]} 27. b3 {[%clk 0:01:30.3]} 27... R4c6 {[%clk
0:01:10.2]} 28. a5 {[%clk 0:01:28.5]} 28... Nb8 {[%clk 0:01:05.2]} 29. Bc5
{[%clk 0:01:24.3]} 29... b6 {[%clk 0:00:56]} 30. axb6 {[%clk 0:01:22.4]} 30...
axb6 {[%clk 0:00:56.1]} 31. Bb4 {[%clk 0:01:19.9]} 31... Na6 {[%clk 0:00:45.9]}
32. Ba3 {[%clk 0:01:07.6]} 32... Kb7 {[%clk 0:00:42.2]} 33. Kb2 {[%clk
0:01:07.4]} 33... Nc7 {[%clk 0:00:35.8]} 34. Ra1 {[%clk 0:01:07.4]} 34... Nb5
{[%clk 0:00:29.4]} 35. Bb4 {[%clk 0:01:07.6]} 35... Ra8 {[%clk 0:00:20.6]} 36.
Rxa8 {[%clk 0:01:06.4]} 36... Kxa8 {[%clk 0:00:20.9]} 37. Re3 {[%clk 0:01:06.2]}
37... Na7 {[%clk 0:00:19.2]} 38. h4 {[%clk 0:00:50.5]} 38... Kb7 {[%clk
0:00:19.3]} 39. h5 {[%clk 0:00:50.7]} 39... gxh5 {[%clk 0:00:19.1]} 40. gxh5
{[%clk 0:00:51.6]} 40... Rc8 {[%clk 0:00:19.4]} 41. Re5 {[%clk 0:00:46.1]} 41...
Nc6 {[%clk 0:00:18.1]} 42. Bd6 {[%clk 0:00:36.5]} 42... Nxe5 {[%clk 0:00:16.9]}
43. Bxe5 {[%clk 0:00:37.4]} 43... Qf5 {[%clk 0:00:16.8]} 44. Qb5 {[%clk
0:00:37.4]} 44... f6 {[%clk 0:00:14]} 45. Qd7+ {[%clk 0:00:36.2]} 45... Ka6
{[%clk 0:00:13.1]} 46. Qxc8+ {[%clk 0:00:36.2]} 46... Kb5 {[%clk 0:00:13.3]} 47.
c4+ {[%clk 0:00:36.5]} 47... Kb4 {[%clk 0:00:13.6]} 48. Bd6+ {[%clk 0:00:36]}
48... Ka5 {[%clk 0:00:14]} 49. Qa8# {[%clk 0:00:35.4]} 1-0